bitfinex-derivatives/quotes_BTCF0:USTF0_20250905
["timestamp","ask_amount","ask_price","bid_price","bid_amount"]
[1757040484682,0.28753549,111490.0,111480.0,0.64129549]
[1757040484885,0.28853549,111490.0,111480.0,0.64129549]
[1757040489182,0.02356,111490.0,111480.0,0.64129549]
[1757040489384,0.02356,111490.0,111480.0,0.32129549]
[1757040489582,0.02356,111490.0,111480.0,0.64129549]
[1757040490681,0.02356,111490.0,111480.0,0.68129549]
[1757040493387,0.001,111490.0,111480.0,1.19627098]
[1757040493690,0.001,111490.0,111480.0,1.30891815]
[1757040493885,0.001,111490.0,111480.0,1.39861175]
[1757040494886,0.001,111490.0,111480.0,1.39961175]
[1757040495283,0.001,111490.0,111480.0,1.28696458]
[1757040495488,0.0001,111500.0,111480.0,1.28696458]
[1757040495684,0.02124,111500.0,111490.0,0.38105137]
[1757040495885,0.02114,111500.0,111490.0,0.75105137]
[1757040496891,0.02114,111500.0,111490.0,0.48607588]
[1757040497093,0.02114,111500.0,111490.0,0.75105137]
[1757040497479,0.02114,111500.0,111490.0,0.67092549]
[1757040497892,0.02214,111500.0,111490.0,0.67092549]
[1757040499889,0.001,111500.0,111490.0,0.67092549]
[1757040501195,0.001,111500.0,111490.0,1.49452549]
[1757040503595,0.001,111500.0,111490.0,0.67092549]
[1757040503796,0.001,111500.0,111490.0,1.49448549]
[1757040509103,0.001,111500.0,111490.0,0.67092549]
[1757040509403,0.001,111500.0,111490.0,1.49432549]
[1757040510397,0.001,111500.0,111490.0,0.67092549]
[1757040510600,0.001,111500.0,111490.0,1.49424549]
[1757040511602,0.001,111500.0,111490.0,1.46457556]
[1757040514718,0.001,111500.0,111490.0,0.64125556]
[1757040515020,0.02214,111500.0,111490.0,1.46445556]
[1757040517521,0.001,111500.0,111490.0,1.46445556]
[1757040518917,0.001,111500.0,111490.0,1.54458144]
[1757040527629,0.001,111500.0,111490.0,1.46445556]
[1757040531725,0.001,111500.0,111490.0,1.54458144]
[1757040532121,0.001,111500.0,111490.0,1.5650846]
[1757040535131,0.001,111500.0,111490.0,1.56522641]
[1757040535327,0.001,111500.0,111490.0,1.56470641]
[1757040538739,0.001,111500.0,111490.0,1.56460942]
[1757040539028,0.02208,111500.0,111490.0,1.19452942]
[1757040539230,0.001,111500.0,111490.0,1.51452942]
[1757040539833,0.001,111500.0,111490.0,0.69192942]
[1757040540032,0.001,111500.0,111490.0,1.51448942]
[1757040540333,0.001,111500.0,111490.0,0.69192942]
[1757040540533,0.001,111500.0,111490.0,1.51444942]
[1757040542838,0.001,111500.0,111490.0,1.51440942]
[1757040543038,0.001,111500.0,111490.0,0.69192942]
[1757040543338,0.001,111500.0,111490.0,1.51440942]
[1757040547238,0.001,111500.0,111490.0,1.54693071]
[1757040547440,0.001,111500.0,111490.0,1.62741748]
[1757040547634,0.001,111500.0,111490.0,1.51477031]
[1757040547835,0.001,111500.0,111490.0,0.69229031]
[1757040548034,0.001,111500.0,111490.0,1.51465031]
[1757040557448,0.001,111500.0,111490.0,1.43416354]
[1757040557648,0.001,111500.0,111490.0,1.54681071]
[1757040563752,0.001,111500.0,111490.0,1.31150515]
[1757040563951,0.001,111500.0,111490.0,1.54681071]
[1757040566154,0.001,111500.0,111490.0,1.31150515]
[1757040566344,0.50944556,111500.0,111490.0,0.56968243]
[1757040566549,0.52318556,111500.0,111490.0,1.27891526]
[1757040567046,0.28788,111500.0,111490.0,1.27891526]
[1757040567548,0.28788,111500.0,111490.0,1.19837798]
[1757040568256,0.52318556,111500.0,111490.0,0.34264]
[1757040568752,0.52318556,111500.0,111490.0,0.05264]
[1757040569056,0.03688,111490.0,111480.0,0.02355466]
[1757040569256,0.03688,111490.0,111480.0,0.40345466]
[1757040569257,0.27218556,111490.0,111480.0,0.40345466]
[1757040570355,0.03688,111490.0,111480.0,0.40345466]
[1757040571143,0.27218556,111490.0,111480.0,0.40345466]
[1757040571550,0.27218556,111490.0,111480.0,0.40445466]
[1757040573467,0.30173917,111490.0,111480.0,0.40445466]
[1757040575667,0.02314,111490.0,111480.0,0.68323383]
[1757040576862,0.28809917,111500.0,111490.0,0.03724]
[1757040577062,0.28799917,111500.0,111490.0,0.03724]
[1757040579972,0.28899917,111500.0,111490.0,0.03724]
[1757040580373,0.02414,111500.0,111490.0,0.03724]
[1757040580573,0.28899917,111500.0,111490.0,0.03724]
[1757040582583,0.30273917,111500.0,111490.0,0.02332]
[1757040582984,0.30273917,111500.0,111490.0,0.03724]
[1757040587085,0.28899917,111500.0,111490.0,0.03724]
[1757040589985,0.001,111500.0,111490.0,0.63209917]
[1757040590496,0.0243,111500.0,111490.0,0.63209917]
[1757040590785,0.001,111500.0,111490.0,0.88209917]
[1757040591977,0.001,111500.0,111490.0,0.96263645]
[1757040592180,0.001,111500.0,111490.0,1.78407645]
[1757040597099,0.001,111500.0,111490.0,1.70353917]
[1757040597593,0.001,111500.0,111490.0,1.71236204]
[1757040598294,0.001,111500.0,111490.0,1.46236204]
[1757040600198,0.001,111500.0,111490.0,1.45353917]
[1757040601993,0.001,111500.0,111490.0,1.53407645]
[1757040602697,0.001,111500.0,111490.0,1.45353917]
[1757040606698,0.001,111500.0,111490.0,1.18868]
[1757040606897,0.001,111500.0,111490.0,1.45353917]
[1757040610717,0.001,111500.0,111490.0,1.53407645]
[1757040613203,0.001,111500.0,111490.0,1.62376445]
[1757040613999,0.001,111500.0,111490.0,1.95856445]
[1757040615000,0.00023466,111510.0,111500.0,0.12437]
[1757040615199,0.00013466,111510.0,111500.0,1.05445927]
[1757040616496,0.00013466,111510.0,111500.0,1.30445927]
[1757040616697,0.00213466,111510.0,111500.0,1.30445927]
[1757040617503,0.00213466,111510.0,111500.0,1.30448452]
[1757040624708,0.00213466,111510.0,111500.0,2.12500452]
[1757040626104,0.00213466,111510.0,111500.0,2.20980452]
[1757040627608,0.00213466,111510.0,111500.0,1.30888834]
[1757040628011,0.00213466,111510.0,111500.0,2.12928834]
[1757040628311,0.00213466,111510.0,111500.0,2.20967348]
[1757040630224,0.00213466,111510.0,111500.0,2.12928834]
[1757040632613,0.00213466,111510.0,111500.0,1.30888834]
[1757040632810,0.00213466,111510.0,111500.0,2.12916834]
[1757040633010,0.00213466,111510.0,111500.0,2.24181551]
[1757040635516,0.00213466,111510.0,111500.0,1.94731362]
[1757040643413,0.00213466,111510.0,111500.0,1.83466645]
[1757040645317,0.00213466,111510.0,111500.0,1.94711361]
[1757040650731,0.00213466,111510.0,111500.0,1.83434645]
[1757040654931,0.00213466,111510.0,111500.0,1.01438645]
[1757040655119,0.00213466,111510.0,111500.0,1.83418645]
[1757040656026,0.00213466,111510.0,111500.0,0.77917]
[1757040656232,0.27348466,111510.0,111500.0,1.49442645]
[1757040656424,0.27348466,111510.0,111500.0,1.5750657]
[1757040657132,0.27348466,111510.0,111500.0,1.49442645]
[1757040657524,0.27348466,111510.0,111500.0,1.66474085]
[1757040659033,0.27348466,111510.0,111500.0,0.84502085]
[1757040659226,0.27348466,111510.0,111500.0,1.66470085]
[1757040659422,0.27348466,111510.0,111500.0,0.5201242]
[1757040659629,0.27348466,111510.0,111500.0,1.2414642]
[1757040659630,0.52195111,111510.0,111500.0,1.2414642]
[1757040659934,0.52195111,111510.0,111500.0,1.16079]
[1757040660126,0.52195111,111510.0,111500.0,0.32]
[1757040661234,0.27195111,111510.0,111500.0,0.32]
[1757040663130,0.52195111,111510.0,111500.0,0.32]
[1757040667144,0.03673466,111510.0,111500.0,0.34274]
[1757040667342,0.02348466,111510.0,111500.0,0.3559]
[1757040667549,0.02348466,111510.0,111500.0,0.59111645]
[1757040667841,0.02348466,111510.0,111500.0,1.41071645]
[1757040668433,0.02348466,111510.0,111500.0,1.1755]
[1757040671637,0.02348466,111510.0,111500.0,1.41071645]
[1757040673439,0.02348466,111510.0,111500.0,1.75039655]
[1757040673440,0.00213466,111510.0,111500.0,1.75039655]
[1757040673630,0.00213466,111510.0,111500.0,1.66071645]
[1757040673835,0.02348466,111510.0,111500.0,0.84111645]
[1757040674142,0.02348466,111510.0,111500.0,1.66063645]
[1757040674346,0.02348466,111510.0,111500.0,1.75031655]
[1757040677147,0.02348466,111510.0,111500.0,1.75027655]
[1757040677547,0.02348466,111510.0,111500.0,1.66059645]
[1757040678639,0.02348466,111510.0,111500.0,1.66055645]
[1757040678954,0.02348466,111510.0,111500.0,1.75023655]
[1757040679452,0.00213466,111510.0,111500.0,1.75023655]
[1757040679633,0.00213466,111510.0,111500.0,1.75019655]
[1757040680743,0.02460466,111510.0,111500.0,0.84111645]
[1757040681045,0.03795466,111510.0,111500.0,1.17526]
[1757040682951,0.02460466,111510.0,111500.0,1.17526]
[1757040683852,0.02460466,111510.0,111500.0,1.41047645]
[1757040684148,0.00213466,111510.0,111500.0,1.41047645]
[1757040684545,0.00213466,111510.0,111500.0,0.3559]
[1757040684853,0.02460466,111510.0,111500.0,0.59111645]
[1757040685050,0.02460466,111510.0,111500.0,1.41039645]
[1757040685652,0.02460466,111510.0,111500.0,1.49103065]
[1757040687352,0.02460466,111510.0,111500.0,0.67175065]
[1757040687551,0.02460466,111510.0,111500.0,1.49103065]
[1757040687752,0.02460466,111510.0,111500.0,1.41039645]
[1757040689551,0.02460466,111510.0,111500.0,1.49103065]
[1757040695468,0.02460466,111510.0,111500.0,1.52050534]
[1757040697171,0.00213466,111510.0,111500.0,1.61018524]
[1757040697372,0.00213466,111510.0,111500.0,1.52050534]
[1757040697671,0.00213466,111510.0,111500.0,1.61018524]
[1757040699374,0.00213466,111510.0,111500.0,1.52050534]
[1757040700273,0.00213466,111510.0,111500.0,1.43987114]
[1757040701671,0.00213466,111510.0,111500.0,1.52955104]
[1757040702573,0.00213466,111510.0,111500.0,1.43987114]
[1757040703576,0.00213466,111510.0,111500.0,1.43959114]
[1757040705376,0.00213466,111510.0,111500.0,1.52010989]
[1757040705578,0.02460466,111510.0,111500.0,1.52006989]
[1757040705772,0.3028958,111510.0,111500.0,1.43955114]
[1757040705975,0.5528958,111510.0,111500.0,1.24217697]
[1757040706174,0.5528958,111510.0,111500.0,0.42325697]
[1757040707571,0.5528958,111510.0,111500.0,0.34274]
[1757040708978,0.5528958,111510.0,111500.0,0.3559]
[1757040709278,0.5528958,111510.0,111500.0,0.62059114]
[1757040711582,0.5528958,111510.0,111500.0,0.34274]
[1757040718084,0.2892958,111510.0,111500.0,0.62059114]
[1757040720694,0.2892958,111510.0,111500.0,0.3559]
[1757040720885,0.2892958,111510.0,111500.0,0.62059114]
[1757040721280,0.00213466,111510.0,111500.0,0.62059114]
[1757040721481,0.00213466,111510.0,111500.0,0.70110811]
[1757040721687,0.02533466,111510.0,111500.0,0.70110811]
[1757040722793,0.2900258,111510.0,111500.0,1.51986811]
[1757040724597,0.00213466,111510.0,111500.0,1.51986811]
[1757040730300,0.00213466,111510.0,111500.0,1.60954831]
[1757040730497,0.00213466,111510.0,111500.0,1.85954831]
[1757040734814,0.00213466,111510.0,111500.0,1.77903134]
[1757040735109,0.00213466,111510.0,111500.0,1.5143402]
[1757040735299,0.00213466,111510.0,111500.0,1.8594736]
[1757040735707,0.00213466,111510.0,111500.0,1.9442736]
[1757040736714,0.00213466,111510.0,111500.0,1.67958246]
[1757040737010,0.00213466,111510.0,111500.0,1.9442736]
[1757040738111,0.00213466,111510.0,111500.0,1.8545934]
[1757040738313,0.00213466,111510.0,111500.0,1.77415114]
[1757040738819,0.00213466,111510.0,111500.0,1.86383134]
[1757040740413,0.00213466,111510.0,111500.0,1.77415114]
[1757040746717,0.00213466,111510.0,111500.0,1.8545934]
[1757040748911,0.00213466,111510.0,111500.0,1.9442736]
[1757040750115,0.00213466,111510.0,111500.0,1.8545934]
[1757040750916,0.00213466,111510.0,111500.0,1.0358334]
[1757040751117,0.00213466,111510.0,111500.0,1.8541134]
[1757040756820,0.00213466,111510.0,111500.0,1.6041134]
[1757040757418,0.00213466,111510.0,111500.0,1.57467395]
[1757040757624,0.00213466,111510.0,111500.0,1.49423169]
[1757040757841,0.00213466,111510.0,111500.0,1.60713344]
[1757040758025,0.00213466,111510.0,111500.0,1.69681364]
[1757040760338,0.00213466,111510.0,111500.0,1.37188175]
[1757040760533,0.00213466,111510.0,111500.0,1.60713344]
[1757040762638,0.00213466,111510.0,111500.0,1.69681364]
[1757040764340,0.00213466,111510.0,111500.0,1.60713344]
[1757040767437,0.00213466,111510.0,111500.0,1.49423169]
[1757040771629,0.00213466,111510.0,111500.0,0.67595169]
[1757040771833,0.01601466,111510.0,111500.0,1.33926003]
[1757040772041,0.00213466,111510.0,111500.0,1.33926003]
[1757040772241,0.00213466,111510.0,111500.0,1.57451172]
[1757040772433,0.00213466,111510.0,111500.0,1.33926003]
[1757040774346,0.00213466,111510.0,111500.0,1.25446003]
[1757040775253,0.00213466,111510.0,111500.0,1.48971172]
[1757040776742,0.00213466,111510.0,111500.0,1.40911169]
[1757040776943,0.00213466,111510.0,111500.0,1.52201344]
[1757040781450,0.00213466,111510.0,111500.0,1.28676175]
[1757040781754,0.00213466,111510.0,111500.0,1.17386]
[1757040782249,0.00213466,111510.0,111500.0,1.8293493]
[1757040782447,0.00213466,111510.0,111500.0,1.74879189]
[1757040783047,0.00213466,111510.0,111500.0,1.86169364]
[1757040783949,0.0001,111520.0,111500.0,1.86169364]
[1757040783950,0.0001,111520.0,111510.0,0.35945389]
[1757040784157,0.0001,111530.0,111520.0,0.03453]
[1757040784348,0.02264,111530.0,111520.0,1.27282686]
[1757040785458,0.02564,111530.0,111520.0,1.27282686]
[1757040785846,0.02564,111530.0,111520.0,1.34317863]
[1757040787655,0.02564,111530.0,111520.0,1.26260177]
[1757040788555,0.02564,111530.0,111520.0,1.28260177]
[1757040789382,0.02564,111530.0,111520.0,0.92260177]
[1757040789648,0.02564,111530.0,111520.0,1.27260177]
[1757040794459,0.02564,111530.0,111520.0,1.27260177]
[1757040794948,0.02564,111530.0,111520.0,0.92248177]
[1757040795151,0.02564,111530.0,111520.0,1.26248177]
[1757040799163,0.003,111530.0,111520.0,1.26248177]
[1757040799366,0.003,111530.0,111520.0,1.34297863]
[1757040805363,0.003,111530.0,111520.0,1.57823032]
[1757040808964,0.003,111530.0,111520.0,1.66789452]
[1757040809166,0.003,111530.0,111520.0,1.91789452]
[1757040811966,0.003,111530.0,111520.0,1.82823032]
[1757040812369,0.003,111530.0,111520.0,1.74773346]
[1757040812871,0.003,111530.0,111520.0,1.83739766]
[1757040813072,0.003,111530.0,111520.0,1.60214597]
[1757040813268,0.003,111530.0,111520.0,1.83739766]
[1757040816676,0.003,111530.0,111520.0,1.58739766]
[1757040816869,0.003,111530.0,111520.0,1.83739766]
[1757040817066,0.003,111530.0,111520.0,1.95029941]
[1757040817479,0.003,111530.0,111520.0,1.97957472]
[1757040818682,0.0001,111540.0,111530.0,0.1259661]
[1757040818981,0.287307,111550.0,111540.0,0.03631]
[1757040819184,0.287207,111550.0,111540.0,1.138077]
[1757040819676,0.287207,111550.0,111540.0,1.118077]
[1757040819877,0.287207,111550.0,111540.0,1.138077]
[1757040820274,0.291207,111550.0,111540.0,1.118077]
[1757040820577,0.02668,111550.0,111540.0,1.138077]
[1757040820774,0.291207,111550.0,111540.0,1.138077]
[1757040821578,0.004,111550.0,111540.0,1.118077]
[1757040821883,0.004,111550.0,111540.0,0.87355]
[1757040822075,0.004,111550.0,111540.0,1.138077]
[1757040823483,0.268527,111550.0,111540.0,1.138077]
[1757040823984,0.268527,111550.0,111540.0,1.118077]
[1757040824980,0.004,111550.0,111540.0,1.118077]
[1757040825180,0.004,111550.0,111540.0,1.138077]
[1757040826686,0.268527,111550.0,111540.0,1.138077]
[1757040829789,0.289867,111550.0,111540.0,0.85343]
[1757040829975,0.02534,111550.0,111540.0,1.117957]
[1757040830180,0.289867,111550.0,111540.0,1.117957]
[1757040830986,0.02534,111550.0,111540.0,1.117957]
[1757040831182,0.289867,111550.0,111540.0,1.117957]
[1757040832189,0.285867,111550.0,111540.0,1.117957]
[1757040832486,0.288867,111550.0,111540.0,1.117957]
[1757040832887,0.287867,111550.0,111540.0,1.117957]
[1757040836285,0.301177,111550.0,111540.0,0.02254]
[1757040838186,0.03665,111550.0,111540.0,0.02254]
[1757040838390,0.301177,111550.0,111540.0,0.02254]
[1757040841895,0.03665,111550.0,111540.0,0.02254]
[1757040842296,0.301177,111550.0,111540.0,0.02254]
[1757040844100,0.03665,111550.0,111540.0,0.02254]
[1757040844300,0.301177,111550.0,111540.0,0.02254]
[1757040844989,0.03665,111550.0,111540.0,0.02254]
[1757040845289,0.301177,111550.0,111540.0,0.02254]
[1757040845485,0.02334,111550.0,111540.0,0.03647]
[1757040845688,0.02334,111550.0,111540.0,0.300997]
[1757040845888,0.287867,111550.0,111540.0,0.300997]
[1757040846196,0.02334,111550.0,111540.0,0.03647]
[1757040846397,0.287867,111550.0,111540.0,0.300997]
[1757040847199,0.02334,111550.0,111540.0,0.300997]
[1757040847397,0.287867,111550.0,111540.0,0.300997]
[1757040850193,0.02334,111550.0,111540.0,0.300997]
[1757040850703,0.287867,111550.0,111540.0,0.300997]
[1757040852198,0.287867,111550.0,111540.0,0.32978503]
[1757040852603,0.287867,111550.0,111540.0,0.320997]
[1757040854406,0.02334,111550.0,111540.0,0.320997]
[1757040854597,0.287867,111550.0,111540.0,0.320997]
[1757040855501,0.301257,111550.0,111540.0,0.03647]
[1757040856902,0.301257,111550.0,111540.0,0.02254]
[1757040857303,0.301257,111550.0,111540.0,0.10300424]
[1757040858294,0.287867,111550.0,111540.0,0.11638424]
[1757040858604,0.301257,111550.0,111540.0,0.38091124]
[1757040859006,0.03673,111550.0,111540.0,0.11638424]
[1757040859209,0.301257,111550.0,111540.0,0.11638424]
[1757040859401,0.301257,111550.0,111540.0,0.38091124]
[1757040860805,0.301257,111550.0,111540.0,0.11638424]
[1757040861108,0.301257,111550.0,111540.0,0.38091124]
[1757040861309,0.03673,111550.0,111540.0,0.38091124]
[1757040861509,0.301257,111550.0,111540.0,0.38091124]
[1757040861710,0.301257,111550.0,111540.0,0.11638424]
[1757040861909,0.301257,111550.0,111540.0,0.10300424]
[1757040862811,0.03673,111550.0,111540.0,0.11638424]
[1757040863011,0.287867,111550.0,111540.0,0.11638424]
[1757040863606,0.301257,111550.0,111540.0,0.11638424]
[1757040863809,0.02334,111550.0,111540.0,0.11638424]
[1757040864204,0.287867,111550.0,111540.0,0.38091124]
[1757040864404,0.301257,111550.0,111540.0,0.11638424]
[1757040864713,0.301257,111550.0,111540.0,0.38091124]
[1757040865113,0.301257,111550.0,111540.0,0.300447]
[1757040866809,0.301257,111550.0,111530.0,0.00023466]
[1757040867009,0.02148,111540.0,111530.0,0.66944166]
[1757040867208,0.02148,111540.0,111530.0,0.66934166]
[1757040867413,0.286007,111540.0,111530.0,0.66934166]
[1757040868108,0.02148,111540.0,111530.0,0.66934166]
[1757040868308,0.286007,111540.0,111530.0,0.66934166]
[1757040868710,0.287007,111540.0,111530.0,0.66934166]
[1757040869015,0.287007,111540.0,111530.0,0.40481466]
[1757040869217,0.287007,111540.0,111530.0,0.66934166]
[1757040869914,0.02248,111540.0,111530.0,0.66934166]
[1757040870114,0.265527,111540.0,111530.0,0.66934166]
[1757040870410,0.287007,111540.0,111530.0,0.66934166]
[1757040872116,0.287007,111540.0,111530.0,0.40481466]
[1757040872318,0.287007,111540.0,111530.0,0.66934166]
[1757040872512,0.287007,111540.0,111530.0,0.29934166]
[1757040872816,0.287007,111540.0,111530.0,0.64934166]
[1757040874008,0.02248,111540.0,111530.0,0.64934166]
[1757040874419,0.02248,111540.0,111530.0,0.38481466]
[1757040874619,0.02248,111540.0,111530.0,0.64934166]
[1757040875917,0.001,111540.0,111530.0,0.64934166]
[1757040878123,0.001,111540.0,111530.0,0.8146059]
[1757040879427,0.001,111540.0,111530.0,0.78522164]
[1757040879728,0.02248,111540.0,111530.0,0.78522164]
[1757040881525,0.02248,111540.0,111530.0,0.5100789]
[1757040884028,0.02248,111540.0,111530.0,0.4252789]
[1757040886032,0.02248,111540.0,111530.0,1.2505589]
[1757040886234,0.02248,111540.0,111530.0,0.9405589]
[1757040886436,0.02248,111540.0,111530.0,1.2705589]
[1757040887336,0.001,111540.0,111530.0,1.2705589]
[1757040887630,0.001,111540.0,111530.0,1.4252374]
[1757040888226,0.001,111540.0,111530.0,1.1252374]
[1757040888426,0.001,111540.0,111530.0,1.4552374]
[1757040889836,0.001,111540.0,111530.0,1.56813915]
[1757040890638,0.001,111540.0,111530.0,1.33299641]
[1757040890936,0.001,111540.0,111530.0,1.56813915]
[1757040893340,0.001,111540.0,111530.0,1.33299641]
[1757040893545,0.001,111540.0,111530.0,1.56813915]
[1757040894239,0.02357,111540.0,111530.0,0.41285915]
[1757040894539,0.02357,111540.0,111530.0,1.19969466]
[1757040894739,0.02357,111540.0,111530.0,1.28034741]
[1757040896133,0.02357,111540.0,111530.0,0.45546741]
[1757040896333,0.02357,111540.0,111530.0,0.94002741]
[1757040896536,0.02357,111540.0,111530.0,1.21937466]
[1757040900144,0.02357,111540.0,111530.0,0.39481466]
[1757040900352,0.03647,111540.0,111530.0,1.19909466]
[1757040900544,0.52161274,111540.0,111530.0,0.85885466]
[1757040901345,0.27161274,111540.0,111530.0,0.85885466]
[1757040901746,0.27161274,111540.0,111530.0,0.84547466]
[1757040902440,0.52161274,111540.0,111530.0,0.02143466]
[1757040906246,0.52161274,111540.0,111530.0,0.08078741]
[1757040906436,0.52161274,111540.0,111530.0,0.00013466]
[1757040907332,0.52161274,111540.0,111530.0,0.02205466]
[1757040907537,0.52161274,111540.0,111530.0,0.00013466]
[1757040907740,0.52161274,111540.0,111530.0,0.02205466]
[1757040914346,0.52161274,111540.0,111530.0,0.00013466]
[1757040915449,1.34505274,111540.0,111530.0,0.00013466]
[1757040917347,0.52161274,111540.0,111530.0,0.02266466]
[1757040917552,1.34501274,111540.0,111530.0,0.00013466]
[1757040920450,0.03577,111510.0,111500.0,0.08065275]
[1757040920754,0.03577,111500.0,111490.0,0.02253]
[1757040920956,0.27091274,111500.0,111490.0,0.02253]
[1757040921557,0.26991274,111500.0,111490.0,0.02253]
[1757040922050,0.26991274,111500.0,111490.0,0.02653]
[1757040922351,0.26991274,111500.0,111490.0,0.004]
[1757040922548,0.27871581,111500.0,111490.0,0.004]
[1757040923456,1.10195581,111500.0,111490.0,0.02653]
[1757040923653,0.27871581,111500.0,111490.0,0.02653]
[1757040923855,1.10199581,111500.0,111490.0,0.02653]
[1757040924155,1.10299581,111500.0,111490.0,0.02253]
[1757040924358,0.86985307,111500.0,111490.0,0.03544]
[1757040924551,0.86985307,111500.0,111490.0,0.28544]
[1757040924552,0.85727307,111500.0,111490.0,0.28544]
[1757040925157,1.10599581,111500.0,111490.0,0.28544]
[1757040925652,0.87085307,111500.0,111490.0,0.28544]
[1757040925858,1.10599581,111500.0,111490.0,0.28544]
[1757040927352,0.27391274,111500.0,111490.0,0.28544]
[1757040927653,0.02519,111500.0,111490.0,0.28544]
[1757040933366,0.02519,111500.0,111490.0,0.87058274]
[1757040933666,0.003,111500.0,111490.0,1.80440698]
[1757040933865,0.003,111500.0,111490.0,1.88505973]
[1757040934965,0.02319,111500.0,111490.0,0.13718869]
[1757040935269,0.02319,111500.0,111490.0,0.42753594]
[1757040935659,0.02219,111500.0,111490.0,0.42953594]
[1757040935976,0.02219,111500.0,111490.0,0.05953594]
[1757040936264,0.27091274,111500.0,111490.0,0.05953594]
[1757040936458,0.27091274,111500.0,111490.0,0.04662594]
[1757040936660,0.03577,111500.0,111490.0,0.04662594]
[1757040938569,0.02219,111500.0,111490.0,0.05953594]
[1757040938768,0.03123214,111510.0,111500.0,0.03544]
[1757040939773,0.26637488,111510.0,111500.0,0.03544]
[1757040939974,0.03123214,111510.0,111500.0,0.03544]
[1757040940868,0.03123214,111510.0,111500.0,0.03644]
[1757040941474,0.29597411,111510.0,111500.0,0.03644]
[1757040941973,0.02219,111510.0,111500.0,0.55118197]
[1757040942173,0.28703197,111520.0,111510.0,0.03544]
[1757040942374,0.28693197,111520.0,111510.0,0.30018197]
[1757040942864,0.28693197,111520.0,111510.0,0.03544]
[1757040943376,0.28793197,111520.0,111510.0,0.03544]
[1757040943875,0.30151197,111520.0,111510.0,0.02253]
[1757040944075,0.03577,111510.0,111500.0,0.0001]
[1757040944378,0.03577,111500.0,111490.0,0.04372594]
[1757040944563,0.30051197,111500.0,111490.0,0.32127791]
[1757040945779,0.30051197,111500.0,111490.0,0.32327791]
[1757040945970,0.30051197,111500.0,111490.0,0.04562594]
[1757040947372,0.30051197,111500.0,111490.0,0.04662594]
[1757040948272,0.30051197,111500.0,111490.0,0.003]
[1757040948676,0.30051197,111500.0,111490.0,0.02631]
[1757040950679,0.30051197,111500.0,111490.0,0.003]
[1757040951082,0.55051197,111500.0,111490.0,0.003]
[1757040952275,0.55251197,111500.0,111490.0,0.002]
[1757040953584,0.55251197,111500.0,111480.0,0.0001]
[1757040953779,0.29931197,111490.0,111480.0,0.02341]
[1757040953980,0.29931197,111490.0,111480.0,0.02331]
[1757040955881,0.29931197,111490.0,111480.0,0.01911]
[1757040956277,0.29931197,111490.0,111470.0,0.26484197]
[1757040956478,0.29931197,111480.0,111470.0,0.29341]
[1757040956677,0.29931197,111480.0,111470.0,0.29331]
[1757040957178,0.30813553,111480.0,111470.0,0.29331]
[1757040957572,0.02191,111480.0,111470.0,0.57263197]
[1757040957776,0.02191,111480.0,111470.0,0.30789]
[1757040957976,0.28675197,111490.0,111480.0,0.03689]
[1757040958176,0.28665197,111490.0,111480.0,0.30163197]
[1757040960190,0.28765197,111490.0,111480.0,0.30163197]
[1757040960889,0.28765197,111490.0,111480.0,0.03689]
[1757040961090,0.02291,111490.0,111480.0,0.03689]
[1757040961284,0.28765197,111490.0,111480.0,0.03689]
[1757040961485,0.30031197,111490.0,111480.0,0.03689]
[1757040961685,0.30031197,111490.0,111470.0,0.0001]
[1757040961988,0.29931197,111480.0,111470.0,0.12341]
[1757040962182,0.29931197,111480.0,111470.0,0.40163197]
[1757040962582,0.28665197,111480.0,111470.0,0.40163197]
[1757040963483,0.02191,111480.0,111470.0,0.40163197]
[1757040963884,0.28675197,111490.0,111480.0,0.03689]
[1757040964088,0.28665197,111490.0,111480.0,0.30163197]
[1757040964488,0.28665197,111490.0,111480.0,0.03689]
[1757040964690,0.28665197,111490.0,111480.0,0.30163197]
[1757040965602,0.28765197,111490.0,111480.0,0.30163197]
[1757040965799,0.28765197,111490.0,111480.0,0.03689]
[1757040967498,0.28765197,111490.0,111480.0,0.30163197]
[1757040967696,0.02291,111490.0,111480.0,0.30163197]
[1757040968594,0.28765197,111490.0,111480.0,0.30163197]
[1757040968993,0.02291,111490.0,111480.0,0.30163197]
[1757040969299,0.001,111490.0,111480.0,0.30163197]
[1757040969594,0.001,111490.0,111480.0,0.03689]
[1757040969897,0.001,111490.0,111480.0,0.30163197]
[1757040971100,0.02291,111490.0,111480.0,0.30163197]
[1757040973596,0.02291,111490.0,111480.0,0.38228472]
[1757040973597,0.28765197,111490.0,111480.0,0.38228472]
[1757040973895,0.28765197,111490.0,111480.0,0.30163197]
[1757040974297,0.28765197,111490.0,111480.0,0.38228472]
[1757040974598,0.28765197,111490.0,111480.0,0.30163197]
[1757040974796,0.03544,111480.0,111470.0,0.10330275]
[1757040975005,0.56492394,111480.0,111460.0,0.1936545]
[1757040975209,0.30018197,111470.0,111460.0,0.13555175]
[1757040975394,0.30018197,111470.0,111460.0,0.02255]
[1757040977295,0.30018197,111470.0,111460.0,0.02455]
[1757040977601,0.30018197,111470.0,111460.0,0.02255]
[1757040977801,0.30018197,111470.0,111460.0,0.02455]
[1757040978101,0.30018197,111470.0,111460.0,0.02555]
[1757040980800,0.55018197,111470.0,111460.0,0.003]
[1757040981201,1.37130197,111470.0,111460.0,0.003]
[1757040982898,0.03544,111450.0,111440.0,0.08065275]
[1757040983103,0.03544,111440.0,111430.0,0.02255]
[1757040983313,0.30018197,111440.0,111430.0,0.02255]
[1757040984004,0.28741197,111440.0,111430.0,0.30087197]
[1757040984304,0.02277,111450.0,111440.0,0.03613]
[1757040984602,0.28741197,111450.0,111440.0,0.30087197]
[1757040984806,0.28741197,111450.0,111440.0,0.03813]
[1757040985998,0.28741197,111450.0,111440.0,0.30287197]
[1757040986598,0.28741197,111450.0,111440.0,0.30587197]
[1757040988404,0.28741197,111450.0,111440.0,0.04113]
[1757040992605,0.30018197,111450.0,111440.0,0.04113]
[1757040992805,0.30018197,111450.0,111440.0,0.02755]
[1757040997917,0.56492394,111450.0,111440.0,0.02755]
[1757040998817,0.03544,111450.0,111440.0,0.04113]
[1757040999025,0.28741197,111450.0,111440.0,0.30587197]
[1757041000517,0.28741197,111450.0,111440.0,0.04113]
[1757041000820,0.30018197,111450.0,111440.0,0.02755]
[1757041001522,0.27103031,111450.0,111440.0,0.02755]